Workbook

Sheet COST CALC 2012 13
K1: Site
B2: Avonmouth | C2: Dynevor | F2: Partington | K2: =B31 -> Avonmouth
A3: Unit Space Offered kwh | B3: 607100000 | C3: 169100000 | F3: 864100000 | J3: Unit Space Offered kwh | K3: =IF(B$31='COST CALC 2012 13'!B$25,'COST CALC 2012 13'!B3,IF('COST CALC 2012 13'!B$31='COST CALC 2012 13'!C$25,'COST CALC 2012 13'!C3,IF('COST CALC 2012 13'!B$31='COST CALC 2012 13'!D$25,'COST CALC 2012 13'!F3,IF('COST CALC 2012 13'!B$31='COST CALC 2012 13'!E$25,'COST CALC 2012 13'!E3,IF('COST CALC 2012 13'!B$31='COST CALC 2012 13'!F$25,'COST CALC 2012 13'!F3,""))))) -> 607100000
A4: Unit Reserve Price | B4: 0.4094 | C4: 0.4094 | F4: 0.3494 | J4: Unit Reserve Price | K4: =IF(B$31='COST CALC 2012 13'!B$25,'COST CALC 2012 13'!B4,IF('COST CALC 2012 13'!B$31='COST CALC 2012 13'!C$25,'COST CALC 2012 13'!C4,IF('COST CALC 2012 13'!B$31='COST CALC 2012 13'!D$25,'COST CALC 2012 13'!F4,IF('COST CALC 2012 13'!B$31='COST CALC 2012 13'!E$25,'COST CALC 2012 13'!E4,IF('COST CALC 2012 13'!B$31='COST CALC 2012 13'!F$25,'COST CALC 2012 13'!F4,""))))) -> 0.4094
A5: Deliverability Offered kwh/day | B5: =B3/(1/0.2573) -> 156206830 | C5: =C3/(1/0.291) -> 49208100 | F5: =F3/(1/0.2541) -> 219567810 | J5: Deliverability Offered kwh/day | K5: =IF(B$31='COST CALC 2012 13'!B$25,'COST CALC 2012 13'!B5,IF('COST CALC 2012 13'!B$31='COST CALC 2012 13'!C$25,'COST CALC 2012 13'!C5,IF('COST CALC 2012 13'!B$31='COST CALC 2012 13'!D$25,'COST CALC 2012 13'!F5,IF('COST CALC 2012 13'!B$31='COST CALC 2012 13'!E$25,'COST CALC 2012 13'!E5,IF('COST CALC 2012 13'!B$31='COST CALC 2012 13'!F$25,'COST CALC 2012 13'!F5,""))))) -> 156206830
A6: Ratio (Space vs. Deliverability) | B6: =B3/B5 -> 3.886513797 | C6: =C3/C5 -> 3.436426117 | F6: =F3/F5 -> 3.935458481 | J6: Ratio (Space vs. Deliverability) | K6: =IF(B$31='COST CALC 2012 13'!B$25,'COST CALC 2012 13'!B6,IF('COST CALC 2012 13'!B$31='COST CALC 2012 13'!C$25,'COST CALC 2012 13'!C6,IF('COST CALC 2012 13'!B$31='COST CALC 2012 13'!D$25,'COST CALC 2012 13'!F6,IF('COST CALC 2012 13'!B$31='COST CALC 2012 13'!E$25,'COST CALC 2012 13'!E6,IF('COST CALC 2012 13'!B$31='COST CALC 2012 13'!F$25,'COST CALC 2012 13'!F6,""))))) -> 3.886513797
A7: Injection Offered kwh/day | B7: =B3/(1/0.0027) -> 1639170 | C7: =C3/(1/0.0086) -> 1454260 | F7: =F3/(1/0.0022) -> 1901020 | J7: Injection Offered kwh/day | K7: =IF(B$31='COST CALC 2012 13'!B$25,'COST CALC 2012 13'!B7,IF('COST CALC 2012 13'!B$31='COST CALC 2012 13'!C$25,'COST CALC 2012 13'!C7,IF('COST CALC 2012 13'!B$31='COST CALC 2012 13'!D$25,'COST CALC 2012 13'!F7,IF('COST CALC 2012 13'!B$31='COST CALC 2012 13'!E$25,'COST CALC 2012 13'!E7,IF('COST CALC 2012 13'!B$31='COST CALC 2012 13'!F$25,'COST CALC 2012 13'!F7,""))))) -> 1639170
A8: Ratio (Space vs. Injection) | B8: =B3/B7 -> 370.3703704 | C8: =C3/C7 -> 116.2790698 | F8: =F3/F7 -> 454.5454545 | J8: Ratio (Space vs. Injection) | K8: =IF(B$31='COST CALC 2012 13'!B$25,'COST CALC 2012 13'!B8,IF('COST CALC 2012 13'!B$31='COST CALC 2012 13'!C$25,'COST CALC 2012 13'!C8,IF('COST CALC 2012 13'!B$31='COST CALC 2012 13'!D$25,'COST CALC 2012 13'!F8,IF('COST CALC 2012 13'!B$31='COST CALC 2012 13'!E$25,'COST CALC 2012 13'!E8,IF('COST CALC 2012 13'!B$31='COST CALC 2012 13'!F$25,'COST CALC 2012 13'!F8,""))))) -> 370.3703704
A10: Implied reserve price unit/deliverability (inc Rebate) | B10: =(B22*100)/B5 -> -0.9495971367 | C10: =(C22*100)/C5 -> 1.406872852 | F10: =(F22*100)/F5 -> 1.375049193 | J10: Implied reserve price unit/deliverability | K10: =IF(B$31='COST CALC 2012 13'!B$25,'COST CALC 2012 13'!B10,IF('COST CALC 2012 13'!B$31='COST CALC 2012 13'!C$25,'COST CALC 2012 13'!C10,IF('COST CALC 2012 13'!B$31='COST CALC 2012 13'!D$25,'COST CALC 2012 13'!F10,IF('COST CALC 2012 13'!B$31='COST CALC 2012 13'!E$25,'COST CALC 2012 13'!E10,IF('COST CALC 2012 13'!B$31='COST CALC 2012 13'!F$25,'COST CALC 2012 13'!F10,""))))) -> -0.9495971367
K11: =IF(B$31='COST CALC 2012 13'!B$25,'COST CALC 2012 13'!B11,IF('COST CALC 2012 13'!B$31='COST CALC 2012 13'!C$25,'COST CALC 2012 13'!C11,IF('COST CALC 2012 13'!B$31='COST CALC 2012 13'!D$25,'COST CALC 2012 13'!F11,IF('COST CALC 2012 13'!B$31='COST CALC 2012 13'!E$25,'COST CALC 2012 13'!E11,IF('COST CALC 2012 13'!B$31='COST CALC 2012 13'!F$25,'COST CALC 2012 13'!F11,""))))) -> 0
A12: LNG Injection Charge p/kwh | B12: 0.19 | C12: 0.198 | F12: 0.258 | J12: LNG Injection Charge p/kwh | K12: =IF(B$31='COST CALC 2012 13'!B$25,'COST CALC 2012 13'!B12,IF('COST CALC 2012 13'!B$31='COST CALC 2012 13'!C$25,'COST CALC 2012 13'!C12,IF('COST CALC 2012 13'!B$31='COST CALC 2012 13'!D$25,'COST CALC 2012 13'!F12,IF('COST CALC 2012 13'!B$31='COST CALC 2012 13'!E$25,'COST CALC 2012 13'!E12,IF('COST CALC 2012 13'!B$31='COST CALC 2012 13'!F$25,'COST CALC 2012 13'!F12,""))))) -> 0.19
A13: LNG Withdrawal Charge p/kwh | B13: 0.019 | C13: 0.017 | F13: 0.017 | J13: LNG Withdrawal Charge p/kwh | K13: =IF(B$31='COST CALC 2012 13'!B$25,'COST CALC 2012 13'!B13,IF('COST CALC 2012 13'!B$31='COST CALC 2012 13'!C$25,'COST CALC 2012 13'!C13,IF('COST CALC 2012 13'!B$31='COST CALC 2012 13'!D$25,'COST CALC 2012 13'!F13,IF('COST CALC 2012 13'!B$31='COST CALC 2012 13'!E$25,'COST CALC 2012 13'!E13,IF('COST CALC 2012 13'!B$31='COST CALC 2012 13'!F$25,'COST CALC 2012 13'!F13,""))))) -> 0.019
A15: Unit Cost/kwh excluding constrain rebate | B15: =B13+B12+B4 -> 0.6184 | C15: =C13+C12+C4 -> 0.6244 | F15: =F13+F12+F4 -> 0.6244 | J15: Unit Cost/kwh excluding constrain rebate | K15: =IF(B$31='COST CALC 2012 13'!B$25,'COST CALC 2012 13'!B15,IF('COST CALC 2012 13'!B$31='COST CALC 2012 13'!C$25,'COST CALC 2012 13'!C15,IF('COST CALC 2012 13'!B$31='COST CALC 2012 13'!D$25,'COST CALC 2012 13'!F15,IF('COST CALC 2012 13'!B$31='COST CALC 2012 13'!E$25,'COST CALC 2012 13'!E15,IF('COST CALC 2012 13'!B$31='COST CALC 2012 13'!F$25,'COST CALC 2012 13'!F15,""))))) -> 0.6184
A16: Unit Cost/therm excluding constrain rebate | B16: =B15*29.3071 -> 18.12351064 | C16: =C15*29.3071 -> 18.29935324 | F16: =F15*29.3071 -> 18.29935324 | J16: Unit Cost/therm excluding constrain rebate | K16: =IF(B$31='COST CALC 2012 13'!B$25,'COST CALC 2012 13'!B16,IF('COST CALC 2012 13'!B$31='COST CALC 2012 13'!C$25,'COST CALC 2012 13'!C16,IF('COST CALC 2012 13'!B$31='COST CALC 2012 13'!D$25,'COST CALC 2012 13'!F16,IF('COST CALC 2012 13'!B$31='COST CALC 2012 13'!E$25,'COST CALC 2012 13'!E16,IF('COST CALC 2012 13'!B$31='COST CALC 2012 13'!F$25,'COST CALC 2012 13'!F16,""))))) -> 18.12351064
A18: Constrained Rebate p/kwh/space | B18: =SUM(0.0032*365)/B40 -> 0.6537313433 | C18: 0 | F18: 0 | J18: Constrained Rebate p/kwh/space | K18: =IF(B$31='COST CALC 2012 13'!B$25,'COST CALC 2012 13'!B18,IF('COST CALC 2012 13'!B$31='COST CALC 2012 13'!C$25,'COST CALC 2012 13'!C18,IF('COST CALC 2012 13'!B$31='COST CALC 2012 13'!D$25,'COST CALC 2012 13'!F18,IF('COST CALC 2012 13'!B$31='COST CALC 2012 13'!E$25,'COST CALC 2012 13'!E18,IF('COST CALC 2012 13'!B$31='COST CALC 2012 13'!F$25,'COST CALC 2012 13'!F18,""))))) -> 0.6537313433
A20: Unit Cost of Service (including rebate) | B20: =B15-B18 -> -0.03533134328 | C20: =C15-C18 -> 0.6244 | F20: =F15-F18 -> 0.6244 | J20: Unit Cost of Service (including rebate) | K20: =IF(B$31='COST CALC 2012 13'!B$25,'COST CALC 2012 13'!B20,IF('COST CALC 2012 13'!B$31='COST CALC 2012 13'!C$25,'COST CALC 2012 13'!C20,IF('COST CALC 2012 13'!B$31='COST CALC 2012 13'!D$25,'COST CALC 2012 13'!F20,IF('COST CALC 2012 13'!B$31='COST CALC 2012 13'!E$25,'COST CALC 2012 13'!E20,IF('COST CALC 2012 13'!B$31='COST CALC 2012 13'!F$25,'COST CALC 2012 13'!F20,""))))) -> -0.03533134328
A22: Cost of Service (inc Rebate, ex other service charges) | B22: =(B3*B4/100)-((B18*B3)/100) -> -1483335.585 | C22: =(C3*C4/100) -> 692295.4 | F22: =(F3*F4/100) -> 3019165.4 | J22: Cost of Service (inc Rebate, ex other service charges) | K22: =IF(B$31='COST CALC 2012 13'!B$25,'COST CALC 2012 13'!B22,IF('COST CALC 2012 13'!B$31='COST CALC 2012 13'!C$25,'COST CALC 2012 13'!C22,IF('COST CALC 2012 13'!B$31='COST CALC 2012 13'!D$25,'COST CALC 2012 13'!F22,IF('COST CALC 2012 13'!B$31='COST CALC 2012 13'!E$25,'COST CALC 2012 13'!E22,IF('COST CALC 2012 13'!B$31='COST CALC 2012 13'!F$25,'COST CALC 2012 13'!F22,""))))) -> -1483335.585
A23: Total Cost of Service (inc Rebate) | B23: =B20*B3/100 -> -214496.5851 | C23: =C20*C3/100 -> 1055860.4 | F23: =F20*F3/100 -> 5395440.4 | J23: Total Cost of Service (inc Rebate) | K23: =IF(B$31='COST CALC 2012 13'!B$25,'COST CALC 2012 13'!B23,IF('COST CALC 2012 13'!B$31='COST CALC 2012 13'!C$25,'COST CALC 2012 13'!C23,IF('COST CALC 2012 13'!B$31='COST CALC 2012 13'!D$25,'COST CALC 2012 13'!F23,IF('COST CALC 2012 13'!B$31='COST CALC 2012 13'!E$25,'COST CALC 2012 13'!E23,IF('COST CALC 2012 13'!B$31='COST CALC 2012 13'!F$25,'COST CALC 2012 13'!F23,""))))) -> -214496.5851
B25: Avonmouth | C25: Dynevor | D25: Partington
A26: Enter data in yellow cells
A28: LNG 2015/2016 Service Costs
A31: Site | B31: Avonmouth | O31: Avonmouth
O32: Glenmavis
B33: kWh | C33: Therms | O33: Partington
A34: Total bundled units required | B34: 268000000 | C34: =B34/29.3071 -> 9144541.766
A36: Capacity to be purchased
A37: Total space | B37: =B34 -> 268000000 | C37: =B37/29.3071 -> 9144541.766
A38: Firm Withdrawal rights per day | B38: =B37*'Invitation Table'!H6 -> 150000000 | C38: =B38/29.3071 -> 5118213.675
A39: Firm Injection per day | B39: =B37*'Invitation Table'!H4 -> 1103260 | C39: =IF(ISERROR(B39/29.3071),"",B39/29.3071) -> 37644.8028
A40: Duration (days) | B40: =B37/B38 -> 1.786666667
B42: p/kWh | C42: p/Therm
A44: Reserve Price unit/space | B44: ='Invitation Table'!E14 -> 0.4203 | C44: =B44*29.3071 -> 12.31777413
A45: Customer Bid Price | B45: 0.45 | C45: =B45*29.3071 -> 13.188195 | D45: =IF(B45<B44,"Error bid price is less than reserve please re-enter!",IF(B45<B44,"Error bid price is less than reserve please re-enter!",IF(B45<B44,"Error bid price is less than reserve please re-enter!",IF(B45<B44,"Error bid price is less than reserve please re-enter!","Bid is OK as it is greater than reserve price")))) -> Bid is OK as it is greater than reserve price
A46: Estimated cost of summer gas for injection | B46: 2.1 | C46: =B46*29.3071 -> 61.54491
A48: Associated LNG Costs
A50: Injection / unit | B50: ='Invitation Table'!C14 -> 0.467 | C50: =B50*29.3071 -> 13.6864157
A51: Withdrawal / unit | B51: ='Invitation Table'!D14 -> 0.035 | C51: =B51*29.3071 -> 1.0257485
A52: Constrained rebate | B52: 0 | C52: =B52*29.3071 -> 0
A54: Total LNG Service Cost | B54: =B45+B50+B51-B52 -> 0.952 | C54: =B54*29.3071 -> 27.9003592
A56: Total Cost of Service Including Gas Costs | B56: =B54+B46 -> 3.052 | C56: =B56*29.3071 -> 89.4452692
A58: Tankering
A60: Number of Slots | B60: 1
A61: Monthly Tanker Loads Required | B61: 10
A63: Summary
A65: Cost of LNG Service (Capacity only) | B65: =SUM(B45-B52)*B34/100 -> 1206000
A66: Cost of LNG Service inc associated costs (exc Gas Costs) | B66: =B54*B37/100 -> 2551360
A67: Cost of LNG Service inc associated costs (inc Gas Costs) | B67: =B56*B37/100 -> 8179360
A68: Tankering Costs (Annual) | B68: =B60*'Invitation Table'!C19+'COST CALC 2012 13'!B61*'Invitation Table'!D19*12 -> 93567.46
A71: Enter data only in Yellow Cells Only
A73: Disclaimer
A74: This program is supplied only with the intention of providing a guide to the cost of an LNG Storage Service for 2012/13. National Grid LNG Storage does not accept any liability for any errors
A75: contained within the program. It is not recommended to solely base your auction strategy on this program.

Sheet Invitation Table
B1: Appendix 1 | L1: Appendix 5 - Table 5
B3: Facility | C3: 2015/16 Constrained Status | D3: Bundled Units Available | J3: Reserve Price (pence per bundled unit) | L3: Facility | M3: Storage Injectability (kWh/d) | N3: Storage Space (kWh) | O3: Storage Deliverability (kWh/d)
B4: Avonmouth | C4: Not Constrained | D4: Stage 1: (12 month fixed Storage Duration ) | E4: 134000000 | F4: kWh | G4: Injectability: | H4: =M4/N4 -> 0.004116641791 | I4: kWh/d | J4: Stage 1: 0.4203 | L4: Avonmouth | M4: 1103260 | N4: 268000000 | O4: 150000000
D5: Stage 2: (6 month fixed Storage Duration ) | E5: 67000000 | F5: kWh | G5: Space: | H5: 1 | I5: kWh | J5: Stage 2: 0.4203
D6: (plus any rolled over capacity) | G6: Deliverability: | H6: =O4/N4 -> 0.5597014925 | I6: kWh/d
D7: Stage 3: (6 month fixed Storage Duration ) | E7: 67000000 | F7: kWh | G7: Duration: | H7: =H5/H6 -> 1.786666667 | I7: Days | J7: Stage 3: 0.4203
D8: (plus any rolled over capacity)
D9: Total | E9: =SUM(E4:E7) -> 268000000 | F9: kWh
B11: Appendix 2 - Service costs (p/kWh)
C13: Storage Injection (inside window) | D13: Storage Withdrawal | E13: Reserve Price
B14: Avonmouth | C14: 0.467 | D14: 0.035 | E14: 0.4203
B16: Appendix 2 - Tankering Costs (£)
C18: Tanker Filling Slot | D18: Tanker Withdrawal Charge
B19: Avonmouth | C19: 9619.06 | D19: 699.57
